Cogmind - Beta 16 @@@ ROGUE MODE // 2025.12.27 @ 17:57:49 Player: Arttano Result: Destroyed by H-55 Commando with Gauss Rifle Performance ------------- Evolutions (3) 1500 Regions Visited (8) 1600 Robots Destroyed (83) 415 Value Destroyed (2578) 2578 Prototype IDs (27) 540 Alien Tech Used (0) 0 Bonus (514) 514 TOTAL SCORE: 7147 Bonus ------- Follower Combat Kills 14 Entered Garrisons 200 Aligned with FarCom 300 Cogmind --------- Core Integrity 0/700 Matter 238/300 Energy 100/100 System Corruption 5% Temperature Cool (0) Movement Flying (32) Location -7/Garrison Parts ------- > --- POWER (1) -------- (None) > --- PROPULSION (5) --- Improved VTOL Module Improved VTOL Module > --- UTILITY (5) ------ Melee Analysis Suite Advanced ECM Suite Hacking Suite > --- WEAPON (2) ------- Gauss Rifle > --- INVENTORY (5) ---- Particle Gun Plasma Cannon Peak State ------------ > --- POWER ------------ Light Angular Momentum Engine > --- PROPULSION ------- Cooled VTOL Module Flying Fortress v7 > --- UTILITY ---------- Large Storage Unit Improved Medium Armor Plating Hacking Suite System Shield System Shield > --- WEAPON ----------- Improved Grenade Launcher Makeshift Sword > --- INVENTORY -------- Micro Nuclear Core Improved Flight Unit Improved Flight Unit Improved Flight Unit Advanced Terrain Scan Processor Melee Analysis Suite Melee Analysis Suite Advanced ECM Suite Reaction Control System Reaction Control System Hardened Medium Armor Plating Hardlight Generator Hacking Suite Advanced Assault Cannon [Rating: 67] Favorites ----------- Power Light Ion Engine Engine Light Ion Engine Power Core Light Nuclear Core Propulsion Aluminum Leg Leg Aluminum Leg Flight Unit Improved Flight Unit Utility Large Storage Unit Device Advanced ECM Suite Storage Large Storage Unit Processor Transport Network Coupler Hackware System Shield Protection Hardened Medium Armor Plating Weapon Particle Gun Energy Gun Particle Gun Energy Cannon Plasma Cannon Ballistic Gun Heavy Assault Rifle Ballistic Cannon Advanced Assault Cannon Launcher Improved Grenade Launcher Impact Weapon Power Maul Slashing Weapon Makeshift Sword Build | -11 -10 -10 -10 -9 -8 -7 -7 -7 ------- Run | Yrd Mat Min Exi Min Mat Fac Sto Gar Slots Evolved 6 | . . . . . 4 2 . . Power . | . . . . . . . . . Propulsion 3 | . . . . . 2 1 . . Utility 3 | . . . . . 2 1 . . Weapon . | . . . . . . . . . Parts Attached 80 | 7 5 9 . . 28 14 15 2 Power 12 | 1 . 3 . . 3 1 3 1 Engine 7 | 1 . 3 . . 1 1 1 . Core 5 | . . . . . 2 . 2 1 Reactor . | . . . . . . . . . Propulsion 24 | 2 1 3 . . 11 4 3 . Treads . | . . . . . . . . . Leg 16 | 2 1 3 . . 10 . . . Wheel . | . . . . . . . . . Hover . | . . . . . . . . . Flight 8 | . . . . . 1 4 3 . Utility 23 | 2 3 . . . 6 7 5 . Device 5 | 1 . . . . . 2 2 . Storage 3 | 1 2 . . . . . . . Processor 4 | . 1 . . . 1 . 2 . Hackware 4 | . . . . . . 4 . . Protection 7 | . . . . . 5 1 1 . Artifact . | . . . . . . . . . Weapon 21 | 2 1 3 . . 8 2 4 1 Energy Gun 8 | 1 1 2 . . 2 . 2 . Energy Cannon 1 | . . . . . . . 1 . Ballistic Gun 8 | 1 . 1 . . 5 . . 1 Ballistic Cannon 1 | . . . . . . 1 . . Launcher 1 | . . . . . . 1 . . Special Weapon . | . . . . . . . . . Impact Weapon 1 | . . . . . . . 1 . Slashing Weapon 1 | . . . . . 1 . . . Piercing Weapon . | . . . . . . . . . Special Melee Weapon . | . . . . . . . . . Unidentified Prototypes 4 | . . . . . 1 2 1 . Parts Lost 37 | . . 2 . . 15 . 12 8 Power 7 | . . . . . 2 . 3 2 Propulsion 12 | . . . . . 7 . 2 3 Utility 9 | . . . . . 2 . 5 2 Weapon 9 | . . 2 . . 4 . 2 1 Highest Loss Streak 7 | . . 1 . . 5 . 7 6 To Critical Strikes . | . . . . . . . . . Average Backups 11 | 4 9 14 14 11 11 13 7 3 Power 2 | . 2 4 4 4 2 1 . . Propulsion 3 | 2 3 4 5 5 5 2 1 . Utility 3 | . 1 4 3 . 1 8 4 . Weapon 2 | . 1 1 2 2 2 2 . 3 Tool/Special . | . . . . . . . . . Unused Backups 17 | . 4 . 4 . 4 3 2 . Power 1 | . . . . . . 1 . . Propulsion 7 | . 3 . 1 . 3 . . . Utility 7 | . . . 3 . . 2 2 . Weapon 2 | . 1 . . . 1 . . . Tool/Special . | . . . . . . . . . Average Slot Usage (%) 90 | . 100 96 99 100 95 75 73 53 Engine 8 | . 14 14 14 14 4 7 3 2 Core 1 | . . . . . 4 . . 2 Leg 22 | . 28 28 28 28 35 . . . Flight 5 | . . . . . . 14 25 24 Device 1 | . 6 . . . . 4 3 3 Storage 9 | . 14 14 14 14 9 7 3 . Processor 12 | . 7 14 14 14 16 6 4 7 Hackware 3 | . . . . . . 10 19 7 Protection 3 | . . . . . 7 6 1 1 Energy Gun 7 | . 14 19 14 14 3 . . . Ballistic Gun 8 | . 14 5 13 14 12 1 . . Slashing Weapon 1 | . . . . . . 6 . . Peak Build Rating 67 | 9 9 12 15 15 36 67 65 35 Average Rating 27 | 6 8 9 12 15 29 62 43 24 On Entrance 21 | . 9 8 12 15 15 36 61 35 Avg Prop Armor Cover (%) 4 | . . . . . . . 4 4 Naked Turns . | . . . . . . . . . Heaviest Build 48 | 12 26 28 28 28 43 48 41 18 Greatest Support 55 | 20 20 25 25 25 48 55 55 20 Greatest Overweight (x) 7 | . 1 1 1 1 1 . 7 1 Average Overweight (x) . | . . 1 1 1 . . . . Largest Inventory Capacity 15 | 8 15 15 15 15 15 15 15 5 Average Capacity 13 | 7 11 15 15 15 15 15 9 5 Most Carried 15 | 7 13 15 15 15 15 15 13 5 Average Carried 12 | 4 9 14 14 14 14 13 7 3 Final Capacity 15 | 8 15 15 15 15 15 15 5 5 Final Carried 15 | 7 13 15 14 15 15 13 4 2 Class Distribution -------------------- 28% | Mutant 26% | Scavenger-Mutant 22% | Scavenger-Skirmisher 11% | Hacker-Mutant 3% | Sprinter 3% | Hacker-Sprinter Dominant Class ---------------- Mutant | -10/Materials Mutant | -10/Mines Scavenger-Mutant | -10/Exiles Scavenger-Mutant | -9/Mines Scavenger-Skirmisher | -8/Materials Mutant | -7/Factory Hacker-Mutant | -7/Storage Sprinter | -7/Garrison Resources | -11 -10 -10 -10 -9 -8 -7 -7 -7 ----------- Run | Yrd Mat Min Exi Min Mat Fac Sto Gar Matter Collected 2147 | 235 122 162 . . 856 183 549 40 Remotely . | . . . . . . . . . Salvage Created 2996 | 83 385 243 . . 1190 169 819 107 Parts 170 | 3 21 13 . . 76 16 33 8 Haulers Intercepted 9 | . 2 . . . 4 . 3 . Recyclers Shooed 4 | 1 . . . . 1 . 2 . Parts Field Recycled . | . . . . . . . . . Retrieved Matter . | . . . . . . . . . Parts Self-Destructed . | . . . . . . . . . Prevented . | . . . . . . . . . Parts Restored . | . . . . . . . . . Kills | -11 -10 -10 -10 -9 -8 -7 -7 -7 ------- Run | Yrd Mat Min Exi Min Mat Fac Sto Gar Combat Hostiles Destroyed 62 | . 6 10 . . 25 4 14 3 Melee 3 | . . . . . . . 3 . Guns 44 | . 6 9 . . 25 . 2 2 Cannons 7 | . . . . . . 3 3 1 AOE 2 | . . . . . . 1 1 . Classes Destroyed 13 | 2 3 1 . . 3 2 2 . Worker 2 | . . . . . 1 1 . . Builder 2 | . . . . . . . 2 . Tunneler 1 | 1 . . . . . . . . Hauler 9 | . 2 . . . 4 . 3 . Recycler 3 | 1 . . . . . . 2 . Operator 3 | . 1 . . . 1 1 . . Watcher 1 | . . . . . . . 1 . Swarmer 15 | . . 6 . . 7 . . 2 Grunt 29 | . 6 4 . . 9 . 10 . Sentry 9 | . . . . . 8 . 1 . Specialist 1 | . . . . . 1 . . . Hunter 3 | . . . . . . 1 1 1 Programmer 5 | . . . . . . 3 2 . Best Kill Streak 8 | 2 3 3 . . 8 2 4 2 Combat Bots Only 4 | . 3 3 . . 4 1 3 2 Max Kills in Single Turn 3 | 1 1 1 . . 2 1 3 1 Gunslinging 1 | . . . . . 1 . . . Exploded 1 | . . . . . . 1 1 . Melee 1 | . . . . . . . 1 . Uniques/NPCs Destroyed . | . . . . . . . . . Combat | -11 -10 -10 -10 -9 -8 -7 -7 -7 -------- Run | Yrd Mat Min Exi Min Mat Fac Sto Gar Hostile Shots Fired 646 | . 28 58 . . 247 24 228 61 Missed 207 | . 3 10 . . 83 12 81 18 Hits 439 | . 25 48 . . 164 12 147 43 Projectile 439 | . 25 48 . . 164 12 147 43 Critical Strikes 11 | . . . . . 4 1 6 . Damage Taken 5808 | . 286 482 . . 2021 185 2246 588 Core 1125 | . 27 87 . . 303 . 503 205 Absorbed by Shields 142 | . . . . . . . 12 130 Core Remaining (%) 66 | 100 . . . 54 44 . . . Volleys Fired 226 | 9 28 28 . . 98 13 36 14 Largest 2 | 2 2 2 . . 2 2 2 2 Hottest 130 | 70 70 115 . . 115 76 115 130 Shots Fired 386 | 18 56 53 . . 182 15 45 17 Gun 340 | 18 56 53 . . 182 1 14 16 Cannon 39 | . . . . . . 13 25 1 Launcher 7 | . . . . . . 1 6 . Special . | . . . . . . . . . Kinetic 203 | 9 28 5 . . 120 14 14 13 Thermal 170 | 9 28 48 . . 62 . 22 1 Explosive 7 | . . . . . . 1 6 . Electromagnetic 6 | . . . . . . . 3 3 Robot Hit Streak 15 | 3 7 9 . . 15 5 7 6 Robot Miss Streak 5 | 3 3 4 . . 5 2 3 3 Penetration Max . | . . . . . . . . . Secondary Targets 7 | . . 3 . . 4 . . . Max Gunslinging Chain 1 | . . 1 . . 1 . . . Shots Hit Robots 278 | 10 36 31 . . 124 8 60 9 Core Hits 121 | 3 19 13 . . 55 8 17 6 Critical Kills 1 | . . . . . . . 1 . Critical Parts Destroyed 8 | . . . . . . . 8 . Critical Strikes 19 | 1 3 2 . . 1 1 11 . Burn 7 | 1 3 2 . . 1 . . . Blast 3 | . . . . . . 1 2 . Smash 9 | . . . . . . . 9 . Melee Attacks 111 | . . . . . 9 50 52 . Impact 52 | . . . . . . . 52 . Slashing 59 | . . . . . 9 50 . . Piercing . | . . . . . . . . . Sneak Attacks 5 | . . . . . . . 5 . Combat Hostiles . | . . . . . . . . . Follow-up Attacks . | . . . . . . . . . Damage Inflicted 6162 | 100 375 389 . . 2000 281 2831 186 Guns 3240 | 100 375 389 . . 2000 18 198 160 Cannons 709 | . . . . . . 230 453 26 Explosions 387 | . . . . . . 33 354 . Melee 1826 | . . . . . . . 1826 . Ramming . | . . . . . . . . . Kinetic 2075 | 50 137 18 . . 1253 248 242 127 Thermal 1821 | 50 238 371 . . 747 . 389 26 Explosive 387 | . . . . . . 33 354 . Electromagnetic 53 | . . . . . . . 20 33 Impact 1826 | . . . . . . . 1826 . Slashing . | . . . . . . . . . Piercing . | . . . . . . . . . Highest Corruption 5 | . . . . . . 3 5 5 Average Corruption 3 | . . . . . . 2 3 5 Corruption Purged . | . . . . . . . . . Corruption Blocked . | . . . . . . . . . Effects 32 | . . . . . . 12 15 5 Message Errors 12 | . . . . . . 4 4 4 Matter Fused 9 | . . . . . . 2 7 . Heat Flow Errors 4 | . . . . . . 2 1 1 Energy Discharges 5 | . . . . . . 2 3 . Parts Rejected 1 | . . . . . . 1 . . Data Loss (minor) 1 | . . . . . . 1 . . Overload Shots . | . . . . . . . . . Overflow Damage 889 | . . . . . . . 889 . Projectiles 29 | . . . . . . . 29 . Explosions 22 | . . . . . . . 22 . Melee 838 | . . . . . . . 838 . Knockbacks 9 | . . . . . . 1 8 . Impact 7 | . . . . . . . 7 . Kinetic 1 | . . . . . . 1 . . Secondary 1 | . . . . . . . 1 . Self-Inflicted Damage 24 | . . . . . . . 24 . Shots 1 | . . . . . . . 1 . Rammed . | . . . . . . . . . Targets Rammed . | . . . . . . . . . Kicked . | . . . . . . . . . Crushed . | . . . . . . . . . Highest Temperature 422 | 62 232 422 . . 271 266 313 113 Average Temperature 85 | 29 83 111 . . 76 78 100 31 Received Heat Transfer 2052 | . 159 138 . . 630 . 1125 . Effects 2 | . . 2 . . . . . . Shutdowns 1 | . . 1 . . . . . . Matter Decay 1 | . . 1 . . . . . . Siege Activations . | . . . . . . . . . Martial Activations . | . . . . . . . . . Shielding Activations . | . . . . . . . . . Robots Disrupted . | . . . . . . . . . Combat Hostiles . | . . . . . . . . . Robots Corrupted 7 | . . . . . . . 7 . Combat Hostiles 5 | . . . . . . . 5 . Parts Fried 11 | . . . . . . . 11 . Impact Corruptions 23 | . . . . . . . 23 . Robots Melted 1 | . . 1 . . . . . . Combat Hostiles 1 | . . 1 . . . . . . Parts Melted 18 | 1 2 7 . . 6 . 2 . Heat Transferred 4953 | 222 925 1149 . . 1850 . 757 50 Parts Sabotaged . | . . . . . . . . . Parts Stolen . | . . . . . . . . . Parts Stripped . | . . . . . . . . . Power Chain Reactions . | . . . . . . . . . Alert | -11 -10 -10 -10 -9 -8 -7 -7 -7 ------- Run | Yrd Mat Min Exi Min Mat Fac Sto Gar Maximum Alert Level 1 | . . . . . . . 1 . Low Security (%) 98 | 100 100 100 . 100 100 100 84 100 Level 1 1 | . . . . . . . 15 . Level 2 . | . . . . . . . . . Level 3 . | . . . . . . . . . Level 4 . | . . . . . . . . . Level 5 . | . . . . . . . . . High Security . | . . . . . . . . . Max Security . | . . . . . . . . . Peak Influence 225 | 5 75 84 . . 181 67 225 181 Initial 146 | . . 4 . . . 67 . 146 Average 53 | . 22 22 . . 73 15 137 125 Influence Increases 2462 | 10 289 330 . . 753 274 691 115 Destroy 0b10 Robot/C 1280 | . 120 240 . . 500 80 280 60 Destroy 0b10 Robot/NC 105 | 10 15 . . . 30 10 40 . Destroy Leader 330 | . 34 40 . . 128 40 78 10 Allied During Kill 20 | . . 20 . . . . . . Successful Hack 51 | . 14 . . . 9 16 12 . Disable Machine 75 | . . . . . . 45 30 . Destroy Structure 121 | . 1 . . . 11 53 56 . Partial Spotted 45 | . . . . . . 30 15 . Lose Combat Pursuer 435 | . 105 30 . . 75 . 180 45 Influence Decreases 2281 | 10 278 341 . . 603 424 466 159 Entered New Map 169 | . . 7 . . . 83 . 79 Time Decay 1767 | 10 278 294 . . 498 341 346 . Lost Part 305 | . . . . . 105 . 120 80 Lost Ally 40 | . . 40 . . . . . . Squads Dispatched 25 | . 2 . . . 9 8 6 . Investigation 8 | . 1 . . . 3 4 . . Extermination 5 | . . . . . . 3 2 . Reinforcement 8 | . 1 . . . 3 1 3 . Assault . | . . . . . . . . . Garrison 4 | . . . . . 3 . 1 . Intercept . | . . . . . . . . . Searches Triggered . | . . . . . . . . . Construction Impeded 1 | . . . . . . . 1 . Haulers Reinforced 1 | . . . . . . . 1 . Active Scanning Responses . | . . . . . . . . . Cargo Convoy Interrupts . | . . . . . . . . . Stealth | -11 -10 -10 -10 -9 -8 -7 -7 -7 --------- Run | Yrd Mat Min Exi Min Mat Fac Sto Gar Distress Signals 10 | . 1 . . . 6 1 2 . Communications Jammed . | . . . . . . . . . Distress Signals . | . . . . . . . . . Times Spotted 143 | . 17 15 . . 63 17 27 4 Peak Tracking Total 9 | . 3 3 . . 9 3 7 6 Tactical Retreats 19 | . 7 2 . . 3 . 6 1 Traps | -11 -10 -10 -10 -9 -8 -7 -7 -7 ------- Run | Yrd Mat Min Exi Min Mat Fac Sto Gar Traps Triggered 7 | . 1 . . . 1 2 . 3 Indirectly . | . . . . . . . . . Trap Hack Attempts . | . . . . . . . . . Triggered . | . . . . . . . . . Disarmed . | . . . . . . . . . Reprogrammed . | . . . . . . . . . Reused . | . . . . . . . . . Traps Extracted . | . . . . . . . . . Installed . | . . . . . . . . . Triggered . | . . . . . . . . . Machines | -11 -10 -10 -10 -9 -8 -7 -7 -7 ---------- Run | Yrd Mat Min Exi Min Mat Fac Sto Gar Machines Disabled 5 | . . . . . . 3 2 . Max in Single Turn 1 | . . . . . . 1 1 . Machines Repaired . | . . . . . . . . . Machines Dismantled . | . . . . . . . . . Machines Sabotaged . | . . . . . . . . . Overloaded Fab Kills . | . . . . . . . . . Hacking | -11 -10 -10 -10 -9 -8 -7 -7 -7 --------- Run | Yrd Mat Min Exi Min Mat Fac Sto Gar Machines Accessed 25 | . 4 . 1 . 8 6 6 . Terminals 17 | . 3 . . . 6 3 5 . Fabricators 2 | . . . . . . 2 . . Repair Stations . | . . . . . . . . . Recycling Units 2 | . 1 . . . . 1 . . Scanalyzers 2 | . . . . . 2 . . . Garrison Access 1 | . . . . . . . 1 . Total Hacks 64 | . 9 . 1 . 29 17 8 . Successful 30 | . 3 . 1 . 14 8 4 . Failed 34 | . 6 . . . 15 9 4 . Catastrophic 4 | . . . . . 2 2 . . Database Lockouts . | . . . . . . . . . Manual 38 | . 5 . 1 . 22 7 3 . Terminals 44 | . 8 . . . 23 7 6 . Fabricators 8 | . . . . . . 8 . . Repair Stations . | . . . . . . . . . Recycling Units 3 | . 1 . . . . 2 . . Scanalyzers 6 | . . . . . 6 . . . Garrison Access 2 | . . . . . . . 2 . Terminal Hacks 17 | . 2 . 1 . 9 2 3 . Record 6 | . . . . . 6 . . . Part Schematic 1 | . . . . . . 1 . . Robot Analysis 2 | . 1 . . . 1 . . . Open Door 3 | . . . . . . . 3 . Emergency Access Points 1 | . . . . . 1 . . . Fabricator Index 1 | . . . . . . 1 . . Hauler Manifests 2 | . 1 . . . 1 . . . Proto ID Catalog 1 | . . . 1 . . . . . Fabricator Hacks 4 | . . . . . . 4 . . Load Schematic 2 | . . . . . . 2 . . Build 2 | . . . . . . 2 . . Repair Station Hacks . | . . . . . . . . . Recycling Unit Hacks 3 | . 1 . . . . 2 . . Report Inventory 2 | . 1 . . . . 1 . . Retrieve Matter 1 | . . . . . . 1 . . Scanalyzer 5 | . . . . . 5 . . . Insert Component 3 | . . . . . 3 . . . Analyze 1 | . . . . . 1 . . . Retrieve Study 1 | . . . . . 1 . . . Garrison Access Hacks 1 | . . . . . . . 1 . Unlock Access 1 | . . . . . . . 1 . Unauthorized Hacks . | . . . . . . . . . Terminals . | . . . . . . . . . Fabricators . | . . . . . . . . . Repair Stations . | . . . . . . . . . Recycling Units . | . . . . . . . . . Scanalyzers . | . . . . . . . . . Garrison Access . | . . . . . . . . . Data Cores Recovered . | . . . . . . . . . Used . | . . . . . . . . . Hacking Detections 16 | . 3 . . . 7 4 2 . Full Trace Events 11 | . 3 . . . 5 3 . . Feedback Events . | . . . . . . . . . Feedback Blocked . | . . . . . . . . . Robot Schematics Acquired . | . . . . . . . . . Robots Built . | . . . . . . . . . Authchips . | . . . . . . . . . Time . | . . . . . . . . . Total Robot Build Rating . | . . . . . . . . . Part Schematics Acquired 2 | . . . . . 1 1 . . Parts Built 2 | . . . . . . 2 . . Authchips . | . . . . . . . . . Time 146 | . . . . . . 146 . . Total Part Build Rating 6 | . . . . . . 6 . . Part Studies Acquired . | . . . . . . . . . Parts Repaired . | . . . . . . . . . Time . | . . . . . . . . . Parts Recycled . | . . . . . . . . . Recycled Matter . | . . . . . . . . . Retrieved Matter . | . . . . . . . . . Retrieved Components . | . . . . . . . . . Parts Scanalyzed 1 | . . . . . 1 . . . Part Schematics Acquired 1 | . . . . . 1 . . . Parts Damaged . | . . . . . . . . . Bothacking | -11 -10 -10 -10 -9 -8 -7 -7 -7 ------------ Run | Yrd Mat Min Exi Min Mat Fac Sto Gar Used RIF Installer . | . . . . . . . . . Robots Hacked . | . . . . . . . . . Non-combat . | . . . . . . . . . Combat . | . . . . . . . . . Robot Hacks Applied . | . . . . . . . . . Relay Couplers Released . | . . . . . . . . . Fabnet Peak Effective % . | . . . . . . . . . Robots Rewired . | . . . . . . . . . Allies Hacked . | . . . . . . . . . Hacks Repelled . | . . . . . . . . . Allies | -11 -10 -10 -10 -9 -8 -7 -7 -7 -------- Run | Yrd Mat Min Exi Min Mat Fac Sto Gar Total Allies 3 | . . 3 . . . . . . Largest Group 3 | . . 3 . . . . . . Highest-Rated Group 76 | . . 76 . . . . . . Highest-Rated Ally 31 | . . 31 . . . . . . Total Orders . | . . . . . . . . . Ally Attacks 11 | . . 11 . . . . . . Total Damage 104 | . . 104 . . . . . . Kills 2 | . . 2 . . . . . . Allies Corrupted . | . . . . . . . . . Allies Melted . | . . . . . . . . . Intel | -11 -10 -10 -10 -9 -8 -7 -7 -7 ------- Run | Yrd Mat Min Exi Min Mat Fac Sto Gar Active Infowar (turns) 7270 | 30 924 1149 829 465 2738 1133 1 1 Optics 2455 | . . . . . 2355 100 . . Terrain 427 | 30 397 . . . . . . . T.N.C. 6839 | . 527 1149 829 465 2738 1131 . . ECM 303 | . . . . . . 301 1 1 Robot Analysis Total 2 | . 1 . . . 1 . . . Derelict Logs Recovered 2 | . . 1 . 1 . . . . Drone Launches . | . . . . . . . . . Drone Recoveries . | . . . . . . . . . Exploration | -11 -10 -10 -10 -9 -8 -7 -7 -7 ------------- Run | Yrd Mat Min Exi Min Mat Fac Sto Gar Turns Passed 8575 | 117 925 1149 829 465 2738 1263 842 247 Spaces Moved 6819 | 65 521 525 434 243 1965 2034 901 131 Core 12 | 4 . . . . . . 8 . Treads . | . . . . . . . . . Legs 3749 | 61 521 525 434 243 1965 . . . Wheels . | . . . . . . . . . Hover . | . . . . . . . . . Flight 3058 | . . . . . . 2034 893 131 Fastest Speed 25 | 50 120 190 190 190 90 42 25 28 Average Speed 92 | 115 144 190 190 190 99 42 38 32 Slowest Speed 400 | 120 190 190 190 190 186 42 400 102 Overloaded Moves . | . . . . . . . . . Propulsion Burnouts . | . . . . . . . . . Robots Hopped 5 | . . . . . . . 5 . Potential Cave-ins . | . . . . . . . . . Cave-ins Triggered . | . . . . . . . . . Exploration Rate (%) 50 | 4 75 92 82 39 72 41 39 10 Regions Visited 8 Branch Regions 4 Pre-discovered Areas 2 | . . 1 . 1 . . . . Known Exits Taken 1 | . . . . . . . 1 . Unknown Exits Taken 7 | 1 1 1 1 1 1 1 . . Scrap Searched 1 | . . 1 . . . . . . Spaces Dug 65 | . . . . . 9 46 10 . Terrain Destroyed 127 | . . . . . 9 51 67 . Melee 65 | . . . . . 9 46 10 . Projectile 6 | . . . . . . 1 5 . AOE 56 | . . . . . . 4 52 . Terrain Rammed . | . . . . . . . . . Walls Destroyed . | . . . . . . . . . Machines Disabled . | . . . . . . . . . Actions | -11 -10 -10 -10 -9 -8 -7 -7 -7 --------- Run | Yrd Mat Min Exi Min Mat Fac Sto Gar Total 8525 | 87 644 626 441 247 2548 2377 1237 318 Wait 1081 | . 75 48 . 4 384 215 215 140 Move 6802 | 64 520 524 433 242 1964 2033 891 131 Hop 4 | . . . . . . . 4 . Pick Up 69 | 7 8 8 1 1 22 17 4 1 Fast Attach 24 | 7 1 1 1 . 6 . 7 1 Attach 40 | . . 2 . . 15 3 15 5 Detach 11 | . 1 . . . . . 8 2 Swap 65 | . 4 9 . . 31 18 3 . Drop 57 | . 7 6 6 . 19 17 2 . Fire 226 | 9 28 28 . . 98 13 36 14 Melee 111 | . . . . . 9 50 52 . Ram . | . . . . . . . . . Kick . | . . . . . . . . . Crush . | . . . . . . . . . Escape Stasis 35 | . . . . . . 11 . 24 Rewire . | . . . . . . . . . Trap . | . . . . . . . . . Miscellaneous . | . . . . . . . . . Route ------- -11/Scrapyard -10/Materials (discovered 4 exits: [*Mat x2] / [*Min] / [*Sub]) -10/Mines (discovered 4 exits: [*Mat x2] / *Exi / [*Sub]) -10/Exiles -9/Mines -8/Materials -7/Factory -7/Storage -7/Garrison History --------- Turn | Location | Event 13 | -11/Scrapyard | Discovered new exit (range 15) 118 | -11/Scrapyard | Entered Materials 318 | -10/Materials | Build established: Mutant 471 | -10/Materials | Discovered new exit (range 16) 715 | -10/Materials | Discovered new exit (range 9) 749 | -10/Materials | Discovered new exit (range 11) 846 | -10/Materials | Discovered new exit (range 15) 1043 | -10/Materials | Entered Mines 1046 | -10/Mines | Received a Mining Laser from a helpful Derelict 1426 | -10/Mines | Discovered new exit (range 4) 1451 | -10/Mines | Learned location of Zion (-6) 1961 | -10/Mines | Discovered new exit (range 5) 1994 | -10/Mines | Discovered new exit (range 9) 2015 | -10/Mines | Build established: Scavenger-Mutant 2184 | -10/Mines | Deemed a non-threat by the Exiles lab entrance 2184 | -10/Mines | Discovered new exit (range 5) 2192 | -10/Mines | Entered Exiles 2221 | -10/Exiles | Discovered new exit (range 15) 2270 | -10/Exiles | Met 8R-AWN 2297 | -10/Exiles | Met EX-HEX 2415 | -10/Exiles | Met EX-DEC 2446 | -10/Exiles | Visited The Gauntlet 2728 | -10/Exiles | Met EX-BIN 2766 | -10/Exiles | Aligned with FarCom system 2768 | -10/Exiles | Given EX-Vault access code 2816 | -10/Exiles | Opened EX-Vault 2830 | -10/Exiles | Found Flying Fortress v7 2876 | -10/Exiles | Warned to stay clear of 0b10 Research branches 3021 | -10/Exiles | Left Exiles lab with Flying Fortress v7 3021 | -10/Exiles | Entered Mines 3185 | -9/Mines | A weapon hastily lodged in a ceiling crevice suddenly fell to the ground 3458 | -9/Mines | Discovered new exit (range 13) 3486 | -9/Mines | Entered Materials 3486 | -8/Materials | Evolved 4 slots: Propulsion x2, Utility x2 3741 | -8/Materials | Lost 3 parts (1n2w) 4169 | -8/Materials | Lost 5 parts (1p3n1u) 4446 | -8/Materials | Build established: Scavenger-Skirmisher 5275 | -8/Materials | Garrison activated, responded to threat 5300 | -8/Materials | Core integrity fell below 50% 5592 | -8/Materials | Discovered new exit (range 16) 6224 | -8/Materials | Entered Factory 6224 | -7/Factory | Evolved 2 slots: Propulsion x1, Utility x1 6618 | -7/Factory | Build established: Mutant 7028 | -7/Factory | Fabricated Hacking Suite? 7090 | -7/Factory | Fabricated Hacking Suite? 7268 | -7/Factory | Build established: Hacker-Mutant 7388 | -7/Factory | Discovered new exit (range 4) 7487 | -7/Factory | Entered Storage 7580 | -7/Storage | Garrison activated, responded to threat 7812 | -7/Storage | Core integrity fell below 50% 7828 | -7/Storage | Lost 7 parts (2p2n2u1w) 8328 | -7/Storage | Identified exit to Garrison 8329 | -7/Storage | Entered Garrison 8436 | -7/Garrison | Core integrity fell below 20% 8483 | -7/Garrison | Lost 6 parts (1p3n2u) 8576 | -7/Garrison | Destroyed by H-55 Commando with Gauss Rifle Last Messages --------------- 08523_ Field strength at 10. 08524_ Field strength at 4. 08525_ Stasis field depleted. 08531_ Acquired 10 matter. 08537_ Penetrated by Slug. 08545_ S-27 Virus destroyed. 08545_ Penetrated by Slug. 08553_ Shock Rifle destroyed. 08554_ Slug penetrates S-27 Virus. 08560_ Slug penetrates Wall. 08560_ Lgt. Nuclear Core destroyed. 08562_ System corrupted: Heat flow error (+131). 08562_ Slug penetrates S-27 Virus. 08562_ S-27 Virus destroyed. 08564_ Slug penetrates Wall. 08568_ Slug penetrates H-55 Commando. 08570_ Slug penetrates Wall. 08573_ Penetrated by Slug. 08574_ Slug penetrates Wall. 08576_ Penetrated by Slug. Map ----- +----------------------------------------------------+ | ?????????????????????????????????????????????????? | | ?????????????????????????????????????????????????? | | ?????????????????????????????????????????????????? | | ?????????????????????????????????????????????????? | | ?????????????????????????????????????????????????? | | ?????????????????????????????????????????????????? | | ?????????????????????????????????????????????????? | | ?????????????????????????????????????????????????? | | ?????????????????????????????????????????????????? | | ?????????????????????????????????????????????????? | | ?????????????????????????????????????????????????? | | ?????????????????????????????????????????????????? | | ?????????????????????????????????????????????????? | | ?????????????????????????????????????????????????? | | ?????????????????????????????????????????????????? | | ???????????????######????????????????????????????? | | ???????????????# #????????????????????????????? | | ???????????????# #????????????????????????????? | | ???????????????# #????????????????????????????? | | ???????????????### #????????????????????????????? | | ?????????????????# #????????????????????????????? | | ?????????????????# #????????????????????????????? | | ?????????????????# #????????????????????????????? | | ??################ #????????????????????????????? | | ??# %= ########?????????????????????? | | ??# ############## @ #?????????????????????? | | ??#^#????????????# [ #?????????????????????? | | ??# #????????????########%=#?????????????????????? | | ??# #???????????????????#* #?????????????????????? | | ??# #???????????????????#h #?????????????????????? | | ??" #???????????????????# ^#?????????????????????? | | ??" #???????????????????# #?????????????????????? | | ??" #???????????????????# #?????????????????????? | | ??# #???????????????????# #???gg????????????????? | | ??? ????????????????????# #?????????????????????? | | ??? ???????????????????? ?????????????????????? | | ??? ???????????????????? ????????????????????? | | ??? ???????????????????? ???????????????????? | | ??? ???????????????????? ## ???????????????????? | | ??? ???????????????????# #? ??????????????????? | | ???#??????????????????g" [ ?? ?????????????????? | | ???????????????????????" % ?? ????????????????? | | ??????????????????????g" ??? ????????????????? | | ???????????????????????" ??? ???????????????? | | ???????????????????????# #???? ##??????????????? | | ???????????????????????? ??????????????????????? | | ???????????????????????? ??????????????????????? | | ???????????????????????? ??????????????????????? | | ?????????????????????????????????????????????????? | | ?????????????????????????????????????????????????? | +----------------------------------------------------+ Best States ------------- Heat Dissipation 34 Energy Generation 18 Energy Capacity 290 Matter Stores 300 Matter Capacity 300 Sight Range 20 Terrain Scan Range 16 Terrain Scan Density 10 ECM Strength 1 Armor Coverage 225 Evasion (%) 65 Melee Accuracy 10 Offensive Hacking 20 Defensive Hacking 20 Item Schematics ----------------- Imp. Flight Unit | -8/Materials | Scanalyzed Hacking Suite | -7/Factory | Hacked Robot Schematics ------------------ None Fabricated ------------ Hacking Suite | x1 | -7/Factory Hacking Suite | x1 | -7/Factory Repaired ---------- Nothing Studied --------- None Alien Tech Used ----------------- None Achievements -------------- Can't Catch Me Part-time Excavator Serviceable Loadout Sprinter Troublemaker Challenges ------------ None Game ------ Seed ImprovedPointyDisplacer Manual? 0 Play Time 02:07:13 Cumulative 8.6 hours Start 2025.12.27 @ 15:38:45 End 2025.12.27 @ 17:57:49 Sessions 1 Manual Loads 0 Difficulty Rogue Special Mode None Game No. 11 Rogue 11 Adventurer 0 Explorer 0 Win Type - Total 0 Types 0/0/0/0/0/0/0/0/0/0 Lore% 11 Gallery% 10 Achievement% 12 Wizard Run 0 Options --------- Layout 2 ASCII 0 Keyboard 1 Movement Numpad Keybinds 0 Fullscreen 2 Font 24/Smallcaps Map View 50x44 Zoom Use 0% Tactical HUD 1 Map Filters NONE Filters NONE Steam 1 RUN: 730b9d6f-6989-4b5d-acae-b1386189c81f